[Event "*** Titled Tuesday Blitz"]
[Site "Chess.com"]
[Date "2018.01.02"]
[Round "6"]
[White "gmjlh"]
[Black "Ginger_GM"]
[Result "1/2-1/2"]
[WhiteElo "2585"]
[BlackElo "2473"]
[TimeControl "180+2"]
[EndTime "14:25:56 PST"]
[Termination "Game drawn by repetition"]

1. e4 {[%clk 0:03:01.9]} 1... e6 {[%clk 0:02:59]} 2. d4 {[%clk 0:03:00.6]} 2...
d5 {[%clk 0:03:00]} 3. exd5 {[%clk 0:03:02.5]} 3... exd5 {[%clk 0:02:59.6]} 4.
Nf3 {[%clk 0:03:04]} 4... Bg4 {[%clk 0:03:00.1]} 5. h3 {[%clk 0:03:03]} 5... Bh5
{[%clk 0:03:00.9]} 6. Qe2+ {[%clk 0:03:03.3]} 6... Be7 {[%clk 0:02:58.8]} 7.
Qb5+ {[%clk 0:03:00.6]} 7... Nd7 {[%clk 0:02:59.4]} 8. Ne5 {[%clk 0:02:53.5]}
8... Nf6 {[%clk 0:02:40.4]} 9. Qxb7 {[%clk 0:02:52.9]} 9... O-O {[%clk
0:02:30.7]} 10. Nc6 {[%clk 0:02:12.8]} 10... Qe8 {[%clk 0:02:27.7]} 11. Be3
{[%clk 0:02:13.7]} 11... Bd6 {[%clk 0:02:19.4]} 12. Nc3 {[%clk 0:02:14.7]} 12...
Bf4 {[%clk 0:01:57.4]} 13. Kd2 {[%clk 0:02:15.5]} 13... Bxe3+ {[%clk 0:01:56.9]}
14. fxe3 {[%clk 0:02:17.4]} 14... Ne4+ {[%clk 0:01:37.7]} 15. Nxe4 {[%clk
0:02:17.7]} 15... Qxe4 {[%clk 0:01:39.3]} 16. Qxc7 {[%clk 0:01:54.8]} 16... Bg6
{[%clk 0:01:18.3]} 17. Bd3 {[%clk 0:01:52.4]} 17... Qxg2+ {[%clk 0:01:18.6]} 18.
Kc3 {[%clk 0:01:53.2]} 18... Nb6 {[%clk 0:01:09.3]} 19. Kb3 {[%clk 0:01:37.3]}
19... Nc4 {[%clk 0:01:02.3]} 20. Rhg1 {[%clk 0:01:27.5]} 20... Qd2 {[%clk
0:00:52.2]} 21. Rad1 {[%clk 0:01:00]} 21... Qxe3 {[%clk 0:00:49.8]} 22. Rxg6
{[%clk 0:00:45.3]} 22... hxg6 {[%clk 0:00:35.3]} 23. a3 {[%clk 0:00:23.5]} 23...
Kh7 {[%clk 0:00:27.8]} 24. Ka2 {[%clk 0:00:14.9]} 24... Rac8 {[%clk 0:00:28.5]}
25. Qd7 {[%clk 0:00:14.5]} 25... Qe6 {[%clk 0:00:28.2]} 26. Qxe6 {[%clk
0:00:14.3]} 26... fxe6 {[%clk 0:00:29.6]} 27. Ne7 {[%clk 0:00:15.2]} 27... Rc7
{[%clk 0:00:27.7]} 28. Nxg6 {[%clk 0:00:16.1]} 28... Rf6 {[%clk 0:00:27.3]} 29.
Rg1 {[%clk 0:00:15.3]} 29... Kg8 {[%clk 0:00:26.5]} 30. h4 {[%clk 0:00:12.1]}
30... Ne3 {[%clk 0:00:26.4]} 31. c3 {[%clk 0:00:05.8]} 31... a5 {[%clk
0:00:25.7]} 32. a4 {[%clk 0:00:05.4]} 32... Rb7 {[%clk 0:00:25.3]} 33. h5 {[%clk
0:00:05.5]} 33... Rf2 {[%clk 0:00:23.5]} 34. Bb5 {[%clk 0:00:05.2]} 34... Nc4
{[%clk 0:00:22.6]} 35. Rb1 {[%clk 0:00:05.8]} 35... Rh2 {[%clk 0:00:22.7]} 36.
Nf4 {[%clk 0:00:06.9]} 36... Kf7 {[%clk 0:00:22.3]} 37. Ka1 {[%clk 0:00:03.6]}
37... Rf2 {[%clk 0:00:21]} 38. Nd3 {[%clk 0:00:04.5]} 38... Rd2 {[%clk
0:00:20.6]} 39. Nc5 {[%clk 0:00:05.4]} 39... Re7 {[%clk 0:00:21]} 40. Rf1+
{[%clk 0:00:04.9]} 40... Kg8 {[%clk 0:00:21.9]} 41. b3 {[%clk 0:00:04]} 41...
Ne3 {[%clk 0:00:22.6]} 42. Rf3 {[%clk 0:00:03.6]} 42... Nf5 {[%clk 0:00:22.1]}
43. Kb1 {[%clk 0:00:03.3]} 43... Rh2 {[%clk 0:00:21.4]} 44. Bd3 {[%clk
0:00:02.7]} 44... Rxh5 {[%clk 0:00:21.5]} 45. b4 {[%clk 0:00:03.9]} 45... axb4
{[%clk 0:00:21.4]} 46. cxb4 {[%clk 0:00:05.7]} 46... Nxd4 {[%clk 0:00:22.3]} 47.
Rg3 {[%clk 0:00:05]} 47... e5 {[%clk 0:00:23.2]} 48. a5 {[%clk 0:00:04.6]} 48...
e4 {[%clk 0:00:24.5]} 49. Bc2 {[%clk 0:00:03]} 49... Rh1+ {[%clk 0:00:22.6]} 50.
Kb2 {[%clk 0:00:04.2]} 50... Rh2 {[%clk 0:00:23.9]} 51. Rc3 {[%clk 0:00:05.7]}
51... Rxc2+ {[%clk 0:00:24.7]} 52. Rxc2 {[%clk 0:00:07.1]} 52... Nxc2 {[%clk
0:00:26.2]} 53. Kxc2 {[%clk 0:00:09]} 53... d4 {[%clk 0:00:27.6]} 54. a6 {[%clk
0:00:09.5]} 54... e3 {[%clk 0:00:28.3]} 55. b5 {[%clk 0:00:09.9]} 55... e2
{[%clk 0:00:29.4]} 56. Nd3 {[%clk 0:00:11]} 56... e1=Q {[%clk 0:00:06.2]} 57.
Nxe1 {[%clk 0:00:11.2]} 57... Rxe1 {[%clk 0:00:08.1]} 58. a7 {[%clk 0:00:12.2]}
58... Ra1 {[%clk 0:00:07.5]} 59. b6 {[%clk 0:00:13.5]} 59... Kh7 {[%clk
0:00:08.1]} 60. b7 {[%clk 0:00:14.6]} 60... Rxa7 {[%clk 0:00:09.5]} 61. b8=Q
{[%clk 0:00:15.9]} 61... Rf7 {[%clk 0:00:11]} 62. Kd3 {[%clk 0:00:16.8]} 62...
Rf6 {[%clk 0:00:12.2]} 63. Kxd4 {[%clk 0:00:17.8]} 63... Kg6 {[%clk 0:00:13.6]}
64. Ke5 {[%clk 0:00:18.9]} 64... Kh7 {[%clk 0:00:14.8]} 65. Qe8 {[%clk
0:00:19.6]} 65... Kh6 {[%clk 0:00:16]} 66. Qg8 {[%clk 0:00:19.9]} 66... Kg6
{[%clk 0:00:17]} 67. Qh8 {[%clk 0:00:20.5]} 67... Kf7 {[%clk 0:00:17.9]} 68. Ke4
{[%clk 0:00:19.4]} 68... Kg6 {[%clk 0:00:18.9]} 69. Kd5 {[%clk 0:00:19.6]} 69...
Kf7 {[%clk 0:00:20.2]} 70. Ke5 {[%clk 0:00:20.2]} 70... Kg6 {[%clk 0:00:21.5]}
71. Qg8 {[%clk 0:00:21.4]} 71... Kh6 {[%clk 0:00:22]} 72. Qe8 {[%clk 0:00:21.9]}
72... Kh7 {[%clk 0:00:23]} 73. Qh5+ {[%clk 0:00:22.2]} 73... Kg8 {[%clk
0:00:24.2]} 74. Ke4 {[%clk 0:00:21.8]} 74... Kf8 {[%clk 0:00:24.2]} 75. Qh8+
{[%clk 0:00:18.2]} 75... Kf7 {[%clk 0:00:25.3]} 76. Qh7 {[%clk 0:00:19.6]} 76...
Kf8 {[%clk 0:00:26.3]} 77. Ke5 {[%clk 0:00:19.2]} 77... Kf7 {[%clk 0:00:27.5]}
78. Qh8 {[%clk 0:00:17]} 78... Kg6 {[%clk 0:00:28.4]} 79. Qh3 {[%clk 0:00:14.4]}
79... Kf7 {[%clk 0:00:29]} 80. Qd7+ {[%clk 0:00:11.1]} 80... Kg6 {[%clk
0:00:30]} 81. Qd8 {[%clk 0:00:11.8]} 81... Kf7 {[%clk 0:00:30.1]} 82. Qd3 {[%clk
0:00:09.1]} 82... Kg8 {[%clk 0:00:29.2]} 83. Qh3 {[%clk 0:00:08.2]} 83... Kf7
{[%clk 0:00:30.1]} 84. Qh7 {[%clk 0:00:08.1]} 84... Kf8 {[%clk 0:00:30.6]} 85.
Kd5 {[%clk 0:00:04.7]} 85... Kf7 {[%clk 0:00:31.1]} 86. Qc2 {[%clk 0:00:05]}
86... Kf8 {[%clk 0:00:31.2]} 87. Ke4 {[%clk 0:00:06.1]} 87... Kf7 {[%clk
0:00:32.2]} 88. Qc4+ {[%clk 0:00:06.1]} 88... Kg6 {[%clk 0:00:33.2]} 89. Ke5
{[%clk 0:00:06.8]} 89... Kh7 {[%clk 0:00:33.5]} 90. Qc1 {[%clk 0:00:07.1]} 90...
Kg8 {[%clk 0:00:33.7]} 91. Qb1 {[%clk 0:00:08.3]} 91... Kf7 {[%clk 0:00:34.5]}
92. Qa1 {[%clk 0:00:08.9]} 92... Kg6 {[%clk 0:00:35.2]} 93. Qa2 {[%clk
0:00:09.3]} 93... Kh7 {[%clk 0:00:36]} 94. Qg2 {[%clk 0:00:10.5]} 94... Kg8
{[%clk 0:00:36.9]} 95. Qg3 {[%clk 0:00:11.4]} 95... Kf7 {[%clk 0:00:35.2]} 96.
Qg4 {[%clk 0:00:12.1]} 96... Kg8 {[%clk 0:00:35.6]} 97. Qh5 {[%clk 0:00:12.6]}
97... Kf8 {[%clk 0:00:36.3]} 98. Qh8+ {[%clk 0:00:11.2]} 98... Kf7 {[%clk
0:00:37.4]} 99. Qc8 {[%clk 0:00:11.9]} 99... Kg6 {[%clk 0:00:38.1]} 100. Qc2+
{[%clk 0:00:12.5]} 100... Kf7 {[%clk 0:00:38.9]} 101. Qb1 {[%clk 0:00:13.2]}
101... Kg8 {[%clk 0:00:39.4]} 102. Qa2+ {[%clk 0:00:13.9]} 102... Kh7 {[%clk
0:00:40.1]} 103. Qa4 {[%clk 0:00:14.6]} 103... Kg6 {[%clk 0:00:40.9]} 104. Qb4
{[%clk 0:00:15.3]} 104... Kf7 {[%clk 0:00:42]} 105. Qb5 {[%clk 0:00:15.7]}
105... Kg6 {[%clk 0:00:42.8]} 106. Qd7 {[%clk 0:00:16.1]} 106... Kh7 {[%clk
0:00:43.1]} 107. Qc8 {[%clk 0:00:16.6]} 107... Kg6 {[%clk 0:00:43.5]} 108. Qh3
{[%clk 0:00:17.9]} 108... Kf7 {[%clk 0:00:44.3]} 109. Qg4 {[%clk 0:00:18.8]}
109... Kg8 {[%clk 0:00:45]} 110. Qh4 {[%clk 0:00:19.4]} 110... Kf7 {[%clk
0:00:45.8]} 111. Qh3 {[%clk 0:00:20.4]} 111... Kg6 {[%clk 0:00:44.8]} 112. Qh1
{[%clk 0:00:20.9]} 112... Kf7 {[%clk 0:00:43.9]} 113. Qg2 {[%clk 0:00:21.4]}
113... Kg8 {[%clk 0:00:44.5]} 114. Qc2 {[%clk 0:00:21.3]} 114... Kf7 {[%clk
0:00:45.5]} 115. Qa4 {[%clk 0:00:20.9]} 115... Kg6 {[%clk 0:00:46.1]} 116. Qa2
{[%clk 0:00:21.2]} 116... Kh7 {[%clk 0:00:46.1]} 117. Qb2 {[%clk 0:00:22]}
117... Kg8 {[%clk 0:00:45.9]} 118. Qc2 {[%clk 0:00:21.8]} 118... Kf7 {[%clk
0:00:45.8]} 119. Qh7 {[%clk 0:00:22.5]} 119... Kf8 {[%clk 0:00:46.7]} 120. Kd5
{[%clk 0:00:23.2]} 120... Kf7 {[%clk 0:00:47.5]} 121. Qh3 {[%clk 0:00:22.5]}
121... Kg6 {[%clk 0:00:47.6]} 122. Ke5 {[%clk 0:00:23.5]} 122... Kf7 {[%clk
0:00:47.7]} 123. Qg4 {[%clk 0:00:24.1]} 123... Kg8 {[%clk 0:00:48.6]} 1/2-1/2

[Event "*** Titled Tuesday Blitz"]
[Site "Chess.com"]
[Date "2018.01.02"]
[Round "7"]
[White "grzechu96"]
[Black "GM_Huschenbeth"]
[Result "0-1"]
[WhiteElo "2436"]
[BlackElo "2457"]
[TimeControl "180+2"]
[EndTime "14:27:25 PST"]
[Termination "GM_Huschenbeth won by resignation"]

1. e4 {[%clk 0:03:01.9]} 1... c5 {[%clk 0:03:00.5]} 2. Nf3 {[%clk 0:03:03]} 2...
d6 {[%clk 0:03:01.8]} 3. d4 {[%clk 0:03:03.3]} 3... cxd4 {[%clk 0:03:03.7]} 4.
Nxd4 {[%clk 0:03:05.2]} 4... Nf6 {[%clk 0:03:05.2]} 5. Nc3 {[%clk 0:03:06.8]}
5... a6 {[%clk 0:03:06.7]} 6. Qf3 {[%clk 0:03:08.5]} 6... g6 {[%clk 0:03:03.6]}
7. Bg5 {[%clk 0:03:04]} 7... Bg7 {[%clk 0:03:04.2]} 8. O-O-O {[%clk 0:03:04.3]}
8... Bg4 {[%clk 0:02:58]} 9. Qe3 {[%clk 0:02:57.3]} 9... Bxd1 {[%clk 0:02:58.5]}
10. Nxd1 {[%clk 0:02:58.2]} 10... Nc6 {[%clk 0:02:51.7]} 0-1

[Event "*** Titled Tuesday Blitz"]
[Site "Chess.com"]
[Date "2018.01.02"]
[Round "7"]
[White "1e41-0"]
[Black "TheBigBoss04"]
[Result "0-1"]
[WhiteElo "2363"]
[BlackElo "2488"]
[TimeControl "180+2"]
[EndTime "14:31:09 PST"]
[Termination "TheBigBoss04 won by resignation"]

1. e4 {[%clk 0:03:01.9]} 1... c6 {[%clk 0:03:00.9]} 2. c4 {[%clk 0:03:01.1]}
2... d5 {[%clk 0:02:59.4]} 3. cxd5 {[%clk 0:02:59.8]} 3... cxd5 {[%clk
0:03:00.3]} 4. exd5 {[%clk 0:02:58.9]} 4... Nf6 {[%clk 0:02:42.1]} 5. Qa4+
{[%clk 0:02:58.3]} 5... Nbd7 {[%clk 0:02:39.7]} 6. Nc3 {[%clk 0:02:55.8]} 6...
g6 {[%clk 0:02:40.5]} 7. Nf3 {[%clk 0:02:52.4]} 7... Bg7 {[%clk 0:02:40.9]} 8.
Bb5 {[%clk 0:02:47.9]} 8... a6 {[%clk 0:02:39.5]} 9. O-O {[%clk 0:02:40.5]} 9...
O-O {[%clk 0:02:40.2]} 10. Qa3 {[%clk 0:02:28.6]} 10... Nb6 {[%clk 0:02:34.1]}
11. Be2 {[%clk 0:02:24.6]} 11... Nbxd5 {[%clk 0:02:28.5]} 12. d4 {[%clk
0:02:21.4]} 12... Bg4 {[%clk 0:02:28.4]} 13. Re1 {[%clk 0:02:18.4]} 13... b5
{[%clk 0:02:26.4]} 14. Nxd5 {[%clk 0:02:14.1]} 14... Qxd5 {[%clk 0:02:27.7]} 15.
h3 {[%clk 0:02:13]} 15... Bf5 {[%clk 0:02:28]} 16. Bf4 {[%clk 0:02:09.7]} 16...
Rfc8 {[%clk 0:02:24.7]} 17. Qxe7 {[%clk 0:02:06.1]} 17... Re8 {[%clk 0:02:25.6]}
18. Qc5 {[%clk 0:02:04.6]} 18... Qxc5 {[%clk 0:02:21.6]} 19. dxc5 {[%clk
0:02:03.8]} 19... Nd5 {[%clk 0:02:23.5]} 20. Bd2 {[%clk 0:01:42.6]} 20... Bxb2
{[%clk 0:02:22.8]} 21. Rad1 {[%clk 0:01:41.1]} 21... Bc2 {[%clk 0:02:22.2]} 22.
Kf1 {[%clk 0:01:31.7]} 22... Bxd1 {[%clk 0:02:23]} 23. Rxd1 {[%clk 0:01:33.6]}
23... Rac8 {[%clk 0:02:22.4]} 24. Bc1 {[%clk 0:01:26.3]} 24... Bxc1 {[%clk
0:02:19.6]} 25. Rxc1 {[%clk 0:01:28.2]} 25... Nf4 {[%clk 0:02:18]} 26. Nd4
{[%clk 0:01:26.7]} 26... Rcd8 {[%clk 0:02:09.5]} 27. Nc6 {[%clk 0:01:24.5]}
27... Nxe2 {[%clk 0:02:07.3]} 28. Re1 {[%clk 0:01:24.6]} 28... Rc8 {[%clk
0:02:01.7]} 29. Rxe2 {[%clk 0:01:25.6]} 29... Rxe2 {[%clk 0:02:01.1]} 0-1

[Event "*** Titled Tuesday Blitz"]
[Site "Chess.com"]
[Date "2018.01.02"]
[Round "7"]
[White "capatl"]
[Black "krzyzan94"]
[Result "0-1"]
[WhiteElo "2385"]
[BlackElo "2614"]
[TimeControl "180+2"]
[EndTime "14:31:31 PST"]
[Termination "krzyzan94 won by resignation"]

1. c4 {[%clk 0:03:01.9]} 1... Nf6 {[%clk 0:03:00.4]} 2. Nc3 {[%clk 0:03:02.4]}
2... g6 {[%clk 0:03:00.5]} 3. Nf3 {[%clk 0:03:01.4]} 3... Bg7 {[%clk 0:03:01.3]}
4. e3 {[%clk 0:02:57.7]} 4... O-O {[%clk 0:03:01.7]} 5. Be2 {[%clk 0:02:58.9]}
5... d6 {[%clk 0:03:02.7]} 6. O-O {[%clk 0:02:59.4]} 6... e5 {[%clk 0:03:01.1]}
7. d3 {[%clk 0:03:00]} 7... Nc6 {[%clk 0:03:01.3]} 8. Rb1 {[%clk 0:02:56.9]}
8... a5 {[%clk 0:03:01.8]} 9. a3 {[%clk 0:02:57.5]} 9... h6 {[%clk 0:03:00.1]}
10. b4 {[%clk 0:02:57.9]} 10... Be6 {[%clk 0:03:01.3]} 11. d4 {[%clk 0:02:35.4]}
11... exd4 {[%clk 0:02:59.2]} 12. Nxd4 {[%clk 0:02:31]} 12... Nxd4 {[%clk
0:02:59.6]} 13. exd4 {[%clk 0:02:28.8]} 13... d5 {[%clk 0:03:01.1]} 14. c5
{[%clk 0:01:54.2]} 14... axb4 {[%clk 0:03:01.2]} 15. Rxb4 {[%clk 0:01:49.8]}
15... Ne4 {[%clk 0:02:44.9]} 16. Qb3 {[%clk 0:01:29.8]} 16... Nxc5 {[%clk
0:02:27.1]} 17. Qb2 {[%clk 0:00:47.5]} 17... Ne4 {[%clk 0:02:20.7]} 18. Be3
{[%clk 0:00:37]} 18... c5 {[%clk 0:02:18.8]} 19. Rxb7 {[%clk 0:00:27.2]} 19...
cxd4 {[%clk 0:02:15.2]} 20. Nxe4 {[%clk 0:00:19.3]} 20... dxe3 {[%clk
0:02:14.4]} 0-1

[Event "*** Titled Tuesday Blitz"]
[Site "Chess.com"]
[Date "2018.01.02"]
[Round "7"]
[White "chito89"]
[Black "Abrito99"]
[Result "0-1"]
[WhiteElo "2582"]
[BlackElo "2382"]
[TimeControl "180+2"]
[EndTime "14:31:51 PST"]
[Termination "Abrito99 won by resignation"]

1. e4 {[%clk 0:03:01.7]} 1... c5 {[%clk 0:03:00.4]} 2. Nf3 {[%clk 0:03:00.6]}
2... e6 {[%clk 0:03:01.6]} 3. g3 {[%clk 0:02:59.9]} 3... Nc6 {[%clk 0:03:02.2]}
4. Bg2 {[%clk 0:02:53.9]} 4... Nf6 {[%clk 0:03:03.6]} 5. Qe2 {[%clk 0:02:50.3]}
5... d5 {[%clk 0:02:58.8]} 6. exd5 {[%clk 0:02:49.7]} 6... Nxd5 {[%clk
0:02:59.8]} 7. O-O {[%clk 0:02:51.5]} 7... Be7 {[%clk 0:03:00.5]} 8. Rd1 {[%clk
0:02:52.1]} 8... e5 {[%clk 0:02:14.3]} 9. Nxe5 {[%clk 0:02:40.8]} 9... Nd4
{[%clk 0:02:15.1]} 10. Qf1 {[%clk 0:02:42.2]} 10... f6 {[%clk 0:01:49.6]} 11.
Nc3 {[%clk 0:02:34.1]} 11... Nb4 {[%clk 0:01:46.4]} 12. Nc4 {[%clk 0:02:25.4]}
12... Nbxc2 {[%clk 0:01:45.5]} 13. Rb1 {[%clk 0:02:22.6]} 13... O-O {[%clk
0:01:46.8]} 14. d3 {[%clk 0:02:22.2]} 14... Re8 {[%clk 0:01:37.4]} 15. Nd5
{[%clk 0:01:54.4]} 15... Bg4 {[%clk 0:01:17.2]} 16. Nxe7+ {[%clk 0:01:47.1]}
16... Rxe7 {[%clk 0:01:14.1]} 17. f3 {[%clk 0:01:47.8]} 17... Bf5 {[%clk
0:01:00.2]} 18. Kh1 {[%clk 0:01:48.7]} 18... b5 {[%clk 0:00:49]} 19. Nd2 {[%clk
0:01:46]} 19... Ne3 {[%clk 0:00:49.1]} 20. Qg1 {[%clk 0:01:44.1]} 20... Ne2
{[%clk 0:00:43.7]} 21. Qe1 {[%clk 0:01:44.6]} 21... Nxd1 {[%clk 0:00:43.4]} 22.
Qxd1 {[%clk 0:01:45.9]} 22... Bxd3 {[%clk 0:00:41.1]} 23. Ra1 {[%clk 0:01:45.8]}
23... Nd4 {[%clk 0:00:41.2]} 0-1

[Event "*** Titled Tuesday Blitz"]
[Site "Chess.com"]
[Date "2018.01.02"]
[Round "7"]
[White "manubibi"]
[Black "mokerslag"]
[Result "1-0"]
[WhiteElo "2453"]
[BlackElo "2351"]
[TimeControl "180+2"]
[EndTime "14:31:55 PST"]
[Termination "manubibi won by resignation"]

1. e4 {[%clk 0:03:01.9]} 1... c5 {[%clk 0:02:58.3]} 2. Nf3 {[%clk 0:03:00.6]}
2... e6 {[%clk 0:02:58.8]} 3. d4 {[%clk 0:03:00.1]} 3... cxd4 {[%clk 0:03:00.7]}
4. Nxd4 {[%clk 0:03:01.5]} 4... Nf6 {[%clk 0:02:59.6]} 5. Nc3 {[%clk 0:02:54.5]}
5... Nc6 {[%clk 0:03:00.8]} 6. g3 {[%clk 0:02:54.9]} 6... Bb4 {[%clk 0:02:58.9]}
7. Bg2 {[%clk 0:02:55.2]} 7... d5 {[%clk 0:02:59.8]} 8. exd5 {[%clk 0:02:56.1]}
8... Nxd5 {[%clk 0:02:59.6]} 9. O-O {[%clk 0:02:51.5]} 9... O-O {[%clk 0:02:52]}
10. Nxd5 {[%clk 0:02:40]} 10... exd5 {[%clk 0:02:52.6]} 11. Be3 {[%clk
0:02:35.1]} 11... Re8 {[%clk 0:02:41.4]} 12. h3 {[%clk 0:02:33.6]} 12... Be6
{[%clk 0:02:33.1]} 13. Nxe6 {[%clk 0:02:23.5]} 13... fxe6 {[%clk 0:02:28.9]} 14.
c3 {[%clk 0:02:23.2]} 14... Bd6 {[%clk 0:02:25.1]} 15. f4 {[%clk 0:02:19.3]}
15... Qf6 {[%clk 0:02:20.6]} 16. Qd3 {[%clk 0:02:14]} 16... Rac8 {[%clk
0:02:15.5]} 17. Rae1 {[%clk 0:02:13.6]} 17... a6 {[%clk 0:02:08.2]} 18. Bf2
{[%clk 0:01:49.1]} 18... b5 {[%clk 0:01:54]} 19. Re2 {[%clk 0:01:43.3]} 19...
Kh8 {[%clk 0:01:26.3]} 20. Rfe1 {[%clk 0:01:44.1]} 20... Qf7 {[%clk 0:01:21.4]}
21. f5 {[%clk 0:01:28.2]} 21... exf5 {[%clk 0:00:48.5]} 22. Rxe8+ {[%clk
0:01:27.1]} 22... Rxe8 {[%clk 0:00:48.3]} 23. Rxe8+ {[%clk 0:01:28.6]} 23...
Qxe8 {[%clk 0:00:49.2]} 24. Qxd5 {[%clk 0:01:30]} 1-0

[Event "*** Titled Tuesday Blitz"]
[Site "Chess.com"]
[Date "2018.01.02"]
[Round "7"]
[White "nicegg"]
[Black "Keaton87"]
[Result "0-1"]
[WhiteElo "2001"]
[BlackElo "2509"]
[TimeControl "180+2"]
[EndTime "14:32:13 PST"]
[Termination "Keaton87 won by resignation"]

1. e4 {[%clk 0:03:01.9]} 1... c5 {[%clk 0:03:00]} 2. Qh5 {[%clk 0:03:02.2]} 2...
Nf6 {[%clk 0:03:00]} 3. Qxc5 {[%clk 0:03:02]} 3... Nxe4 {[%clk 0:03:01.2]} 4.
Qe3 {[%clk 0:03:03.1]} 4... d5 {[%clk 0:03:02.5]} 5. Nc3 {[%clk 0:03:04.2]} 5...
Nxc3 {[%clk 0:03:02.8]} 6. dxc3 {[%clk 0:03:05.3]} 6... Nc6 {[%clk 0:03:04]} 7.
Nf3 {[%clk 0:03:06.1]} 7... Bf5 {[%clk 0:03:04.4]} 8. Bb5 {[%clk 0:03:00.2]}
8... a6 {[%clk 0:03:01.1]} 9. Bxc6+ {[%clk 0:02:50.4]} 9... bxc6 {[%clk
0:03:03]} 10. Nd4 {[%clk 0:02:51.3]} 10... Bd7 {[%clk 0:02:52.1]} 11. b4 {[%clk
0:02:48.9]} 11... e6 {[%clk 0:02:46]} 12. Nb3 {[%clk 0:02:41.4]} 12... Be7
{[%clk 0:02:43.4]} 13. O-O {[%clk 0:02:41.2]} 13... O-O {[%clk 0:02:43.1]} 14.
Qg3 {[%clk 0:02:37.9]} 14... Kh8 {[%clk 0:02:42.6]} 15. Be3 {[%clk 0:02:36.6]}
15... f6 {[%clk 0:02:40]} 16. Bc5 {[%clk 0:02:36.2]} 16... e5 {[%clk 0:02:39.6]}
17. Rad1 {[%clk 0:02:27.7]} 17... Bf5 {[%clk 0:02:33.7]} 18. Rd2 {[%clk
0:02:24.9]} 18... Re8 {[%clk 0:02:34.6]} 19. c4 {[%clk 0:02:13.5]} 19... d4
{[%clk 0:02:31.6]} 20. Qf3 {[%clk 0:01:59.8]} 20... Bd7 {[%clk 0:02:25.8]} 21.
Bxe7 {[%clk 0:01:59.6]} 21... Qxe7 {[%clk 0:02:27.7]} 22. Nc5 {[%clk 0:02:00.5]}
22... a5 {[%clk 0:02:26]} 23. c3 {[%clk 0:01:56.2]} 23... axb4 {[%clk
0:02:25.8]} 24. cxb4 {[%clk 0:01:55.2]} 24... e4 {[%clk 0:02:24.4]} 25. Qf4
{[%clk 0:01:41]} 25... g5 {[%clk 0:02:12.6]} 26. Qc7 {[%clk 0:01:36.1]} 26...
Be6 {[%clk 0:02:08.6]} 27. Qxc6 {[%clk 0:01:22.3]} 27... Bxc4 {[%clk 0:02:05.4]}
28. Re1 {[%clk 0:01:10.3]} 28... e3 {[%clk 0:02:04.6]} 29. fxe3 {[%clk
0:01:09.4]} 29... dxe3 {[%clk 0:02:05.2]} 30. Rd7 {[%clk 0:01:10.1]} 30... Qe5
{[%clk 0:01:55.6]} 31. Qb7 {[%clk 0:01:03.4]} 31... Bg8 {[%clk 0:01:55.8]} 32.
Rd5 {[%clk 0:00:48.4]} 32... Bxd5 {[%clk 0:01:51.9]} 0-1

[Event "*** Titled Tuesday Blitz"]
[Site "Chess.com"]
[Date "2018.01.02"]
[Round "7"]
[White "DanielNaroditsky"]
[Black "VeraNebolsina"]
[Result "1-0"]
[WhiteElo "2808"]
[BlackElo "2316"]
[TimeControl "180+2"]
[EndTime "14:32:15 PST"]
[Termination "DanielNaroditsky won by resignation"]

1. e4 {[%clk 0:03:01.9]} 1... c5 {[%clk 0:03:00]} 2. Nf3 {[%clk 0:03:03.2]} 2...
d6 {[%clk 0:03:00.4]} 3. d4 {[%clk 0:03:04.8]} 3... cxd4 {[%clk 0:03:01.4]} 4.
Nxd4 {[%clk 0:03:06.7]} 4... Nf6 {[%clk 0:03:01.8]} 5. Nc3 {[%clk 0:03:08.4]}
5... a6 {[%clk 0:03:03]} 6. h4 {[%clk 0:03:09.3]} 6... e5 {[%clk 0:02:59.5]} 7.
Nb3 {[%clk 0:03:10.5]} 7... Be6 {[%clk 0:02:52.4]} 8. f4 {[%clk 0:03:11.6]} 8...
exf4 {[%clk 0:02:41.1]} 9. Bxf4 {[%clk 0:03:13.5]} 9... Nc6 {[%clk 0:02:32.8]}
10. Qd2 {[%clk 0:03:06]} 10... d5 {[%clk 0:02:12.1]} 11. O-O-O {[%clk
0:03:06.5]} 11... dxe4 {[%clk 0:02:02.8]} 12. Qe3 {[%clk 0:03:07.4]} 12... Qc8
{[%clk 0:01:56.4]} 13. Nc5 {[%clk 0:02:59.3]} 13... Bxc5 {[%clk 0:01:49.1]} 14.
Qxc5 {[%clk 0:03:00]} 14... Ne7 {[%clk 0:01:49.9]} 15. Qa3 {[%clk 0:02:55.9]}
15... Nfd5 {[%clk 0:01:39.5]} 16. Nxd5 {[%clk 0:02:43.9]} 16... Nxd5 {[%clk
0:01:40.2]} 17. Bd6 {[%clk 0:02:38.6]} 17... Qc6 {[%clk 0:01:39.6]} 18. Be2
{[%clk 0:02:27.1]} 18... O-O-O {[%clk 0:01:37.9]} 19. Bh2 {[%clk 0:02:23.4]}
19... Rd7 {[%clk 0:01:22]} 20. Qg3 {[%clk 0:02:23.9]} 20... Nc7 {[%clk
0:01:11.7]} 21. Rxd7 {[%clk 0:02:24]} 21... Qxd7 {[%clk 0:01:10.2]} 22. Rd1
{[%clk 0:02:25.5]} 22... Qe7 {[%clk 0:01:03.6]} 23. Qxg7 {[%clk 0:02:15]} 23...
Re8 {[%clk 0:01:03]} 24. Qxh7 {[%clk 0:02:14.5]} 24... Qc5 {[%clk 0:00:58]} 25.
Qxe4 {[%clk 0:02:15.3]} 25... Bxa2 {[%clk 0:00:43.5]} 26. Bg4+ {[%clk 0:02:10]}
26... Be6 {[%clk 0:00:40.5]} 27. Bxe6+ {[%clk 0:02:07.9]} 27... fxe6 {[%clk
0:00:30.7]} 28. Rd3 {[%clk 0:02:08.4]} 28... Nd5 {[%clk 0:00:27]} 29. h5 {[%clk
0:02:07.4]} 29... Qf2 {[%clk 0:00:19]} 30. Rxd5 {[%clk 0:02:06]} 1-0